Cogmind - Beta 9.3 --- EXPLORER MODE // 2019.12.24 @ 17:58:47 Player: Piston Result: Self-destructed Performance ------------- Evolutions (3) 1500 Regions Visited (4) 800 Robots Destroyed (32) 160 Value Destroyed (971) 971 Prototype IDs (4) 80 Alien Tech Used (0) 0 Bonus (0) 0 TOTAL SCORE: 3511 Bonus ------- None Cogmind --------- Core Integrity 485/700 Matter 154/300 Energy 290/290 System Corruption 0% Temperature Cool (144) Movement Rolling (93) Location -7/Factory Parts ------- > --- POWER (2) -------- Nuclear Core Micro Nuclear Core > --- PROPULSION (4) --- Wheel Compact Wheel Armored Huge Wheel > --- UTILITY (4) ------ Medium Storage Unit Large Storage Unit Improved Light Armor Plating > --- WEAPON (4) ------- Heavy Assault Rifle Heavy Assault Rifle Gauss Cannon > --- INVENTORY (14) --- Heavy Laser Peak State ------------ > --- POWER ------------ Light Nuclear Core Micro Nuclear Core > --- PROPULSION ------- Wheel Wheel Armored Huge Wheel > --- UTILITY ---------- Large Storage Unit Large Storage Unit Hardened Light Armor Plating Hardened Light Armor Plating > --- WEAPON ----------- Arc Projector Heavy Particle Cannon Minigun Minigun > --- INVENTORY -------- Nuclear Core Nuclear Core Compact Wheel Medium Storage Unit Medium Storage Unit Beam Rifle Beam Rifle Beam Rifle Heavy Assault Rifle Heavy Assault Rifle Minigun Gauss Cannon Heavy Rocket Launcher [Rating: 39] Favorites ----------- Power Nuclear Core Engine Light Ion Engine Power Core Nuclear Core Propulsion Wheel Wheel Wheel Utility Large Storage Unit Device Disposable Heat Sink Storage Large Storage Unit Processor Targeting Computer Protection Light Armor Plating Weapon Minigun Energy Gun Beam Rifle Energy Cannon Heavy Particle Cannon Ballistic Gun Minigun Ballistic Cannon Gauss Cannon Launcher Heavy Rocket Launcher Build | -11 -10 -9 -8 -7 ------- Run | Scr Mat Mat Mat Fac Slots Evolved 7 | . 1 2 2 2 Power 1 | . . 1 . . Propulsion 2 | . 1 . . 1 Utility 2 | . . . 2 . Weapon 2 | . . 1 . 1 Parts Attached 47 | 7 6 8 4 22 Power 8 | 1 1 3 . 3 Engine 3 | 1 1 1 . . Core 5 | . . 2 . 3 Reactor . | . . . . . Propulsion 7 | 2 1 . . 4 Treads . | . . . . . Leg . | . . . . . Wheel 7 | 2 1 . . 4 Hover . | . . . . . Flight . | . . . . . Utility 14 | 2 2 2 3 5 Device 4 | 1 2 . . 1 Storage 4 | . . 1 2 1 Processor 1 | 1 . . . . Hackware . | . . . . . Protection 5 | . . 1 1 3 Artifact . | . . . . . Weapon 18 | 2 2 3 1 10 Energy Gun 7 | 1 1 1 . 4 Energy Cannon 1 | . . . . 1 Ballistic Gun 8 | 1 1 2 1 3 Ballistic Cannon 1 | . . . . 1 Launcher 1 | . . . . 1 Special Weapon . | . . . . . Impact Weapon . | . . . . . Slashing Weapon . | . . . . . Piercing Weapon . | . . . . . Special Melee Weapon . | . . . . . Unidentified Prototypes . | . . . . . Parts Lost 13 | . . . . 13 Power 1 | . . . . 1 Propulsion 3 | . . . . 3 Utility 3 | . . . . 3 Weapon 6 | . . . . 6 Highest Loss Streak 9 | . . . . 9 Average Slot Usage (%) 93 | . 98 98 100 87 Engine 1 | . 12 2 . . Core 13 | . . 17 16 13 Wheel 24 | . 37 30 25 19 Device 3 | . 19 4 . . Storage 11 | . . 6 19 13 Protection 10 | . . 7 13 12 Energy Gun 10 | . 10 11 8 10 Ballistic Gun 15 | . 12 18 16 14 Naked Turns . | . . . . . Heaviest Build 72 | 8 12 42 66 72 Greatest Support 54 | 20 30 30 30 54 Greatest Overweight (x) 2 | . . 1 2 2 Average Overweight (x) 1 | . . . 2 1 Largest Inventory Capacity 20 | 4 4 10 20 16 Average Capacity 12 | 4 4 8 17 15 Most Carried 13 | 1 4 7 8 13 Average Carried 6 | . 1 5 5 9 Final Capacity 16 | 4 4 10 16 14 Final Carried 8 | 1 4 6 8 1 Class Distribution -------------------- 59% | Hacker-Tank 31% | Hacker-Mutant 5% | Hacker-Gunner 4% | Scavenger-Tank Dominant Class ---------------- Hacker-Mutant | -10/Materials Hacker-Tank | -9/Materials Hacker-Tank | -8/Materials Hacker-Tank | -7/Factory Resources | -11 -10 -9 -8 -7 ----------- Run | Scr Mat Mat Mat Fac Matter Collected 1017 | 201 103 229 132 352 Remotely . | . . . . . Salvage Created 1375 | 59 17 289 255 755 Parts 77 | 3 1 17 20 36 Haulers Intercepted . | . . . . . Recyclers Shooed 2 | . . 2 . . Parts Field Recycled . | . . . . . Retrieved Matter . | . . . . . Parts Self-Destructed . | . . . . . Prevented . | . . . . . Kills | -11 -10 -9 -8 -7 ------- Run | Scr Mat Mat Mat Fac Combat Hostiles Destroyed 21 | 1 . 5 4 11 Guns 19 | 1 . 5 4 9 AOE 2 | . . . . 2 Classes Destroyed 10 | 2 1 2 2 3 Worker 2 | 1 . . . 1 Builder 4 | . . . 1 3 Recycler 3 | . . 1 . 2 Watcher 2 | . 1 . 1 . Swarmer 3 | . . . . 3 Grunt 11 | 1 . 4 1 5 Brawler 1 | . . . . 1 Duelist 1 | . . . 1 . Sentry 4 | . . 1 2 1 Programmer 1 | . . . . 1 Best Kill Streak 6 | 1 1 5 3 6 Combat Bots Only 4 | 1 . 4 2 3 Max Kills in Single Turn 2 | 1 1 1 1 2 Gunslinging . | . . . . . Exploded 1 | . . . . 1 Melee . | . . . . . Uniques/NPCs Destroyed . | . . . . . Combat | -11 -10 -9 -8 -7 -------- Run | Scr Mat Mat Mat Fac Damage Taken 1346 | 41 35 121 165 984 Core 331 | 20 . . 96 215 Absorbed by Shields . | . . . . . Core Remaining (%) 91 | 92 92 100 82 . Volleys Fired 81 | 6 2 15 13 45 Largest 4 | 2 2 3 3 4 Hottest 203 | 70 76 106 106 203 Shots Fired 215 | 12 4 41 33 125 Gun 203 | 12 4 41 33 113 Cannon 10 | . . . . 10 Launcher 2 | . . . . 2 Special . | . . . . . Kinetic 136 | 6 2 26 23 79 Thermal 46 | 6 2 15 10 13 Explosive 2 | . . . . 2 Electromagnetic 31 | . . . . 31 Robot Hit Streak 26 | 8 9 15 21 26 Robot Miss Streak 3 | 1 1 2 1 3 Penetration Max . | . . . . . Secondary Targets . | . . . . . Shots Hit Robots 165 | 10 2 34 28 91 Core Hits 58 | 3 1 12 11 31 Critical Hits . | . . . . . Critical Kills . | . . . . . Critical Parts Destroyed . | . . . . . Melee Attacks . | . . . . . Impact . | . . . . . Slashing . | . . . . . Piercing . | . . . . . Sneak Attacks . | . . . . . Combat Hostiles . | . . . . . Follow-up Attacks . | . . . . . Damage Inflicted 2557 | 113 30 428 420 1566 Guns 2227 | 113 30 428 420 1236 Cannons 26 | . . . . 26 Explosions 304 | . . . . 304 Melee . | . . . . . Ramming . | . . . . . Kinetic 1541 | 50 . 282 290 919 Thermal 558 | 63 30 146 130 189 Explosive 203 | . . . . 203 Electromagnetic 255 | . . . . 255 Impact . | . . . . . Slashing . | . . . . . Piercing . | . . . . . Highest Corruption 1 | . . . 1 . Average Corruption 1 | . . . 1 . Corruption Purged . | . . . . . Overload Shots . | . . . . . Overflow Damage 46 | . . . . 46 Projectiles . | . . . . . Explosions 46 | . . . . 46 Melee . | . . . . . Knockbacks . | . . . . . Impact . | . . . . . Kinetic . | . . . . . Secondary . | . . . . . Self-Inflicted Damage . | . . . . . Shots . | . . . . . Rammed . | . . . . . Targets Rammed . | . . . . . Kicked . | . . . . . Crushed . | . . . . . Highest Temperature 699 | 81 15 478 560 699 Average Temperature 268 | 40 10 291 205 304 Received Heat Transfer 303 | 36 . 93 45 129 Effects 88 | . . 10 9 69 Shutdowns 23 | . . 4 3 16 Energy Bleed 5 | . . 1 1 3 Interference 18 | . . . 4 14 Matter Decay 4 | . . . . 4 Short Circuit 1 | . . 1 . . Damage (minor) 4 | . . . . 4 Damage (major) 31 | . . 4 . 27 Damage (core) 2 | . . . 1 1 Siege Activations . | . . . . . Robots Corrupted . | . . . . . Combat Hostiles . | . . . . . Parts Fried 2 | . . . . 2 Impact Corruptions . | . . . . . Robots Melted . | . . . . . Combat Hostiles . | . . . . . Parts Melted 3 | 1 . 1 1 . Heat Transferred 1234 | 185 74 370 333 272 Parts Sabotaged . | . . . . . Parts Stolen . | . . . . . Parts Stripped . | . . . . . Power Chain Reactions 1 | . . . . 1 Missiles Intercepted . | . . . . . Alert | -11 -10 -9 -8 -7 ------- Run | Scr Mat Mat Mat Fac Peak Influence 276 | 25 54 155 216 276 Average Influence 103 | 6 28 53 131 151 Maximum Alert Level 1 | . . . 1 1 Low Security (%) 77 | 100 100 100 72 58 Level 1 22 | . . . 27 41 Level 2 . | . . . . . Level 3 . | . . . . . Level 4 . | . . . . . Level 5 . | . . . . . High Security . | . . . . . Max Security . | . . . . . Squads Dispatched 3 | . . . . 3 Investigation 1 | . . . . 1 Extermination . | . . . . . Reinforcement 2 | . . . . 2 Assault . | . . . . . Garrison . | . . . . . Intercept . | . . . . . Construction Impeded 1 | . . . . 1 Haulers Reinforced 1 | . . . . 1 Stealth | -11 -10 -9 -8 -7 --------- Run | Scr Mat Mat Mat Fac Distress Signals 1 | . . . . 1 Communications Jammed . | . . . . . Distress Signals . | . . . . . Times Spotted 29 | 1 3 5 5 15 Peak Tracking Total 3 | 1 1 2 2 3 Tactical Retreats 1 | . . . . 1 Traps | -11 -10 -9 -8 -7 ------- Run | Scr Mat Mat Mat Fac Traps Triggered 1 | . 1 . . . Indirectly . | . . . . . Trap Hack Attempts . | . . . . . Triggered . | . . . . . Disarmed . | . . . . . Reprogrammed . | . . . . . Reused . | . . . . . Traps Extracted . | . . . . . Installed . | . . . . . Triggered . | . . . . . Machines | -11 -10 -9 -8 -7 ---------- Run | Scr Mat Mat Mat Fac Machines Disabled . | . . . . . Max in Single Turn . | . . . . . Machines Sabotaged . | . . . . . Garrisons Compromised . | . . . . . Overloaded Fab Kills . | . . . . . Fab Network Shutdowns . | . . . . . Hacking | -11 -10 -9 -8 -7 --------- Run | Scr Mat Mat Mat Fac Machines Accessed 6 | . 2 1 1 2 Terminals 4 | . 2 1 1 . Fabricators 1 | . . . . 1 Repair Stations . | . . . . . Recycling Units . | . . . . . Scanalyzers 1 | . . . . 1 Garrison Access . | . . . . . Total Hacks 23 | . 9 4 5 5 Successful 16 | . 5 3 5 3 Failed 7 | . 4 1 . 2 Catastrophic . | . . . . . Database Lockouts . | . . . . . Manual . | . . . . . Terminals 18 | . 9 4 5 . Fabricators 2 | . . . . 2 Repair Stations . | . . . . . Recycling Units . | . . . . . Scanalyzers 3 | . . . . 3 Garrison Access . | . . . . . Terminal Hacks 13 | . 5 3 5 . Record 2 | . 2 . . . Robot Analysis 1 | . 1 . . . Prototype ID Bank 2 | . . 1 1 . Emergency Access Points 1 | . 1 . . . Alert Level 2 | . . . 2 . Locate Traps 1 | . . 1 . . Maintenance Status 1 | . . . 1 . Surveillance Status 1 | . . 1 . . Registered Components 1 | . 1 . . . Zone Layout 1 | . . . 1 . Fabricator Hacks 2 | . . . . 2 Network Status 1 | . . . . 1 Build 1 | . . . . 1 Repair Station Hacks . | . . . . . Recycling Unit Hacks . | . . . . . Scanalyzer 1 | . . . . 1 Insert Component 1 | . . . . 1 Garrison Access Hacks . | . . . . . Unauthorized Hacks . | . . . . . Terminals . | . . . . . Fabricators . | . . . . . Repair Stations . | . . . . . Recycling Units . | . . . . . Scanalyzers . | . . . . . Garrison Access . | . . . . . Data Cores Recovered . | . . . . . Used . | . . . . . Hacking Detections 5 | . 2 1 1 1 Full Trace Events 2 | . . 1 . 1 Feedback Events . | . . . . . Feedback Blocked . | . . . . . Robot Schematics Acquired . | . . . . . Robots Built . | . . . . . Matter . | . . . . . Time . | . . . . . Total Robot Build Rating . | . . . . . Part Schematics Acquired . | . . . . . Parts Built 2 | . . . . 2 Matter 212 | . . . . 212 Time 106 | . . . . 106 Total Part Build Rating 12 | . . . . 12 Parts Repaired . | . . . . . Time . | . . . . . Parts Recycled . | . . . . . Recycled Matter . | . . . . . Retrieved Matter . | . . . . . Retrieved Components . | . . . . . Parts Scanalyzed 1 | . . . . 1 Part Schematics Acquired . | . . . . . Parts Damaged . | . . . . . Bothacking | -11 -10 -9 -8 -7 ------------ Run | Scr Mat Mat Mat Fac Used RIF Installer . | . . . . . Robots Hacked . | . . . . . Non-combat . | . . . . . Combat . | . . . . . Robot Hacks Applied . | . . . . . Relay Couplers Released . | . . . . . Robots Rewired . | . . . . . Allies Hacked . | . . . . . Hacks Repelled . | . . . . . Allies | -11 -10 -9 -8 -7 -------- Run | Scr Mat Mat Mat Fac Total Allies . | . . . . . Largest Group . | . . . . . Highest-Rated Group . | . . . . . Highest-Rated Ally . | . . . . . Total Orders . | . . . . . Ally Attacks . | . . . . . Total Damage . | . . . . . Kills . | . . . . . Allies Corrupted . | . . . . . Allies Melted . | . . . . . Intel | -11 -10 -9 -8 -7 ------- Run | Scr Mat Mat Mat Fac Robot Analysis Total 1 | . 1 . . . Derelict Logs Recovered . | . . . . . Drone Launches . | . . . . . Drone Recoveries . | . . . . . Exploration | -11 -10 -9 -8 -7 ------------- Run | Scr Mat Mat Mat Fac Turns Passed 1087 | 88 98 246 162 493 Spaces Moved 840 | 81 98 207 120 334 Core 19 | 19 . . . . Treads . | . . . . . Legs . | . . . . . Wheels 821 | 62 98 207 120 334 Hover . | . . . . . Flight . | . . . . . Fastest Speed 50 | 50 80 80 100 96 Average Speed 91 | 72 80 86 100 98 Slowest Speed 103 | 80 80 90 100 103 Overloaded Moves . | . . . . . Propulsion Burnouts . | . . . . . Robots Hopped . | . . . . . Cave-ins Triggered . | . . . . . Exploration Rate (%) 19 | 9 32 25 18 15 Regions Visited 4 Branch Regions . Pre-discovered Areas . | . . . . . Known Exits Taken 4 | 1 1 1 1 . Unknown Exits Taken . | . . . . . Scrap Searched . | . . . . . Spaces Dug . | . . . . . Terrain Destroyed 29 | . . . . 29 Melee . | . . . . . Projectile 3 | . . . . 3 AOE 26 | . . . . 26 Actions | -11 -10 -9 -8 -7 --------- Run | Scr Mat Mat Mat Fac Total 1009 | 94 112 246 140 417 Wait 6 | . . 6 . . Move 836 | 80 97 206 119 334 Hop . | . . . . . Pick Up 19 | 1 3 5 3 7 Fast Attach 24 | 7 4 5 1 7 Attach 15 | . 1 3 2 9 Detach 2 | . . . 1 1 Swap 8 | . 1 . 1 6 Drop 18 | . 4 6 . 8 Fire 81 | 6 2 15 13 45 Melee . | . . . . . Ram . | . . . . . Kick . | . . . . . Crush . | . . . . . Escape Stasis . | . . . . . Rewire . | . . . . . Trap . | . . . . . Miscellaneous . | . . . . . Route ------- -11/Scrapyard -10/Materials -9/Materials -8/Materials -7/Factory History --------- Turn | Location | Event 2 | -11/Scrapyard | Met Revision 17 58 | -11/Scrapyard | Identified exit to Materials 58 | -11/Scrapyard | Discovered exit to Materials (range 8) 89 | -11/Scrapyard | Entered Materials 89 | -10/Materials | Evolved 1 slot: Propulsion x1 175 | -10/Materials | Identified exit to Materials 175 | -10/Materials | Discovered exit to Materials (range 14) 187 | -10/Materials | Entered another Materials area 187 | -9/Materials | Evolved 2 slots: Power x1, Weapon x1 430 | -9/Materials | Identified exit to Materials 430 | -9/Materials | Discovered exit to Materials (range 3) 433 | -9/Materials | Entered another Materials area 433 | -8/Materials | Evolved 2 slots: Utility x2 580 | -8/Materials | Identified exit to Factory 580 | -8/Materials | Discovered exit to Factory (range 15) 595 | -8/Materials | Entered Factory 595 | -7/Factory | Evolved 2 slots: Propulsion x1, Weapon x1 947 | -7/Factory | Fabricated Variable Charge Gun? 959 | -7/Factory | Lost 3 parts (2n1w) 1053 | -7/Factory | Lost 9 parts (1p1n3u4w) 1088 | -7/Factory | Self-destructed Last Messages --------------- R-06 Scavenger collects Gravmag System. K-01 Serf collects debris. R-06 Scavenger collects Target Analyzer. K-01 Serf cleans the Scanalyzer. Connecting with Scanalyzer... >>Insert(Hvy. Rocket Launcher) Scanning Hvy. Rocket Launcher... Ready to analyze. ALERT: Suspicious activity at Scanalyzer F004. Dispatching Investigation squad. Dropped Broken Hvy. Rocket Launcher. K-01 Serf cleans the Scanalyzer. Acquired Hvy. Laser. C-30 ARC bursts open, deploying its payload. H-55 Commando unfolds itself. Slug penetrates Wall. A-02 Transporter calls for reinforcements. ALERT: Hostile activity reported, dispatching reinforcements to area. Penetrated by Slug. Minigun destroyed. Map ----- +----------------------------------------------------+ | ?????????????????????????????????????????????????? | | ?????????????????????????????????????????????????? | | ?????????????????????????????????????????????????? | | ?????????????????????????????????????????????????? | | ?????????????????????????????????????????????????? | | ?????????????????????????????????????????????????? | | ?????????????????????????????????????????????????? | | ?????????????????????????????????????????????????? | | ?????????????????????????????????????????????????? | | ?????????????????????????????????????????????????? | | ?????????????????????????????????????????????????? | | ?????????????????????????????????????????????????? | | ?????????????????????????????????????????????????? | | ?????????????????????????????????????????????????? | | ?????????????????????????????????????????????????? | | ?????????????????????????????????????????????????? | | ?????????????### ?? ????????????????????????????? | | ????????????? % ^ ???????????????????????????? | | ???????????? h ???????????????????????????? | | ???????????? """??????????????????????????? | | ?????????????? "Y"????##############????????? | | ??????????????"" ???# #????????? | | ??????????????"" ???# """ """ #????????? | | ????????????"""" g ??# """ """ #????????? | | ?????????? a ### ! """ """ #????????? | | ?????????? @ + #????????? | | ?????????????????######+#### #????????? | | ???????????????????????????# #????????? | | ???????????????????????????# #????????? | | ???????????????????????????# """ ] #????????? | | ???????????????????????????# """S"" #????????? | | ???????????????????????????# """""" #????????? | | ???????????????????????????# #????###+# | | ?????????????????????????##############+#### | | ?????????????????????????# | | ?????????????????????????# | | ?????????????????????????# | | ?????????????????????????# | | ?????????????????????????# | | ?????????????????????????# % | | ?????????????????????????# | | ?????????????????????????# | | ??????????????????######## [ [ ################# | | ???????????????% =%==% #???????????????? | | ???????????????= *[ * [*#???????????????? | | ????????????????" """""" "" """ #???????????????? | | ???????????????"" ?""""" """""" #???????????????? | | ??????????????""" """""" """""" #???????????????? | | ?????????????"""" """""" """""" #???????????????? | | ????????????? #????#######????? | +----------------------------------------------------+ Best States ------------- Heat Dissipation 34 Coolant Potential 100 Energy Generation 24 Energy Capacity 380 Matter Stores 300 Matter Capacity 300 Sight Range 16 Terrain Scan Range 14 Terrain Scan Density 10 Armor Coverage 300 Resistance: KI 35 Resistance: TH 35 Resistance: EX 35 Resistance: EM 35 Resistance: I 35 Resistance: S 35 Resistance: P 35 Evasion (%) 50 Targeting Accuracy 5 Offensive Hacking 20 Item Schematics ----------------- None Robot Schematics ------------------ None Fabricated ------------ Variable Charge Gun | x2 | -7/Factory | Preloaded Alien Tech Used ----------------- None Achievements -------------- Just What I Needed Challenges ------------ None Game ------ Seed LinkedExplosiveBooster Manual? 0 Play Time 00:18:03 Cumulative 4.4 hours Start 2019.12.24 @ 17:41:07 End 2019.12.24 @ 17:58:47 Sessions 1 Manual Loads 0 Difficulty Explorer Special Mode None Game No. 2 Rogue 0 Adventurer 0 Explorer 2 Win Type - Total 0 Types 0/0/0/0/0/0/0 Lore% 11 Gallery% 15 Achievement% 12 Wizard Run 0 Options --------- ASCII 0 Keyboard 0 Movement Mouse Keybinds 0 Fullscreen 1 Font 18/Terminus Map View 76x50 Tactical HUD 0 Map Filters NONE Filters NONE Steam 1 RUN: cbe8ac52-48ce-44ea-8b32-b34d0d51dd8c